[Event "Titled Tuesday Blitz March 14 Late 2023"]
[White "Perez Ponsa, Federico"]
[Black "Ismagilov, Damir"]
[WhiteFideId "117927"]
[BlackFideId "34199982"]
[WhiteElo "2592"]
[BlackElo "2078"]
[Result "0-1"]
[Round "04"]
[TimeControl "180+1"]
[Date "2023.03.14"]
[WhiteClock "0:00:07"]
[BlackClock "0:00:06"]

1. e4 {[%clk 0:02:51]}  e6 {[%clk 0:02:59]} 2. d4 {[%clk 0:02:50]}  d5 {[%clk 0:02:59]} 3. e5 {[%clk 0:02:51]}  c5 {[%clk 0:02:55]} 4. c3 {[%clk 0:02:52]}  Nc6 {[%clk 0:02:55]} 5. Nf3 {[%clk 0:02:52]}  Nh6 {[%clk 0:02:55]} 6. Bxh6 {[%clk 0:02:43]}  gxh6 {[%clk 0:02:56]} 7. Be2 {[%clk 0:02:35]}  Qb6 {[%clk 0:02:49]} 8. Qd2 {[%clk 0:02:35]}  Rg8 {[%clk 0:02:41]} 9. O-O {[%clk 0:02:35]}  Bd7 {[%clk 0:02:34]} 10. Na3 {[%clk 0:02:35]}  a6 {[%clk 0:02:16]} 11. Nc2 {[%clk 0:02:32]}  O-O-O {[%clk 0:02:08]} 12. dxc5 {[%clk 0:02:23]}  Qxc5 {[%clk 0:02:04]} 13. b4 {[%clk 0:02:22]}  Qb6 {[%clk 0:02:04]} 14. a4 {[%clk 0:02:22]}  a5 {[%clk 0:01:29]} 15. bxa5 {[%clk 0:02:10]}  Qxa5 {[%clk 0:01:30]} 16. Rfb1 {[%clk 0:02:08]}  Bc5 {[%clk 0:01:17]} 17. Rb5 {[%clk 0:01:54]}  Qa7 {[%clk 0:01:15]} 18. Bf1 {[%clk 0:01:50]}  Rg4 {[%clk 0:00:59]} 19. Rab1 {[%clk 0:01:49]}  Rdg8 {[%clk 0:00:55]} 20. Ncd4 {[%clk 0:01:26]}  Nxd4 {[%clk 0:00:52]} 21. cxd4 {[%clk 0:01:16]}  Bxb5 {[%clk 0:00:51]} 22. axb5 {[%clk 0:01:02]}  Bxd4 {[%clk 0:00:25]} 23. h3 {[%clk 0:00:50]}  Bxf2+ {[%clk 0:00:18]} 24. Qxf2 {[%clk 0:00:48]}  Qxf2+ {[%clk 0:00:19]} 25. Kxf2 {[%clk 0:00:49]}  Ra4 {[%clk 0:00:20]} 26. Rb2 {[%clk 0:00:40]}  Kc7 {[%clk 0:00:17]} 27. b6+ {[%clk 0:00:39]}  Kb8 {[%clk 0:00:18]} 28. Bb5 {[%clk 0:00:36]}  Ra5 {[%clk 0:00:16]} 29. Bd3 {[%clk 0:00:37]}  Rc8 {[%clk 0:00:13]} 30. Rb4 {[%clk 0:00:33]}  Ra2+ {[%clk 0:00:13]} 31. Kg3 {[%clk 0:00:32]}  Rc3 {[%clk 0:00:13]} 32. Rg4 {[%clk 0:00:30]}  Rb2 {[%clk 0:00:08]} 33. Rg8+ {[%clk 0:00:17]}  Rc8 {[%clk 0:00:07]} 34. Rg7 {[%clk 0:00:11]}  Rxb6 {[%clk 0:00:07]} 35. Rxf7 {[%clk 0:00:12]}  Rc7 {[%clk 0:00:07]} 36. Rf8+ {[%clk 0:00:12]}  Ka7 {[%clk 0:00:07]} 37. Rf6 {[%clk 0:00:12]}  Re7 {[%clk 0:00:03]} 38. Rxh6 {[%clk 0:00:11]}  Rb4 {[%clk 0:00:03]} 39. Bxh7 {[%clk 0:00:11]}  b5 {[%clk 0:00:02]} 40. Bg8 {[%clk 0:00:11]}  Rg7+ {[%clk 0:00:02]} 41. Kh2 {[%clk 0:00:10]}  Rxg8 {[%clk 0:00:03]} 42. Rxe6 {[%clk 0:00:07]}  Rb2 {[%clk 0:00:03]} 43. Nh4 {[%clk 0:00:04]}  b4 {[%clk 0:00:04]} 44. Rd6 {[%clk 0:00:05]}  b3 {[%clk 0:00:04]} 45. Rxd5 {[%clk 0:00:05]}  Rc2 {[%clk 0:00:03]} 46. Rb5 {[%clk 0:00:04]}  b2 {[%clk 0:00:04]} 47. e6 {[%clk 0:00:05]}  Rb8 {[%clk 0:00:04]} 48. Ra5+ {[%clk 0:00:04]}  Kb6 {[%clk 0:00:03]} 49. Re5 {[%clk 0:00:01]}  b1=Q {[%clk 0:00:03]} 50. Nf3 {[%clk 0:00:02]}  Re8 {[%clk 0:00:03]} 51. e7 {[%clk 0:00:02]}  Qb2 {[%clk 0:00:03]} 52. Re6+ {[%clk 0:00:03]}  Kc7 {[%clk 0:00:03]} 53. Rg6 {[%clk 0:00:04]}  Qc3 {[%clk 0:00:02]} 54. Ng5 {[%clk 0:00:03]}  Qe5+ {[%clk 0:00:02]} 55. Kg1 {[%clk 0:00:03]}  Rc1+ {[%clk 0:00:03]} 56. Kf2 {[%clk 0:00:04]}  Rxe7 {[%clk 0:00:03]} 57. Nf3 {[%clk 0:00:04]}  Qc5+ {[%clk 0:00:03]} 58. Kg3 {[%clk 0:00:04]}  Rc3 {[%clk 0:00:03]} 59. Rg4 {[%clk 0:00:05]}  Rxf3+ {[%clk 0:00:03]} 60. gxf3 {[%clk 0:00:05]}  Kd7 {[%clk 0:00:04]} 61. h4 {[%clk 0:00:05]}  Qd6+ {[%clk 0:00:05]} 62. Kg2 {[%clk 0:00:06]}  Re6 {[%clk 0:00:05]} 63. h5 {[%clk 0:00:06]}  Re5 {[%clk 0:00:06]} 64. Rh4 {[%clk 0:00:06]}  Rg5+ {[%clk 0:00:05]} 65. Kh3 {[%clk 0:00:07]}  Qg3# {[%clk 0:00:06]} 0-1


[Site "https://www.chess.com"]

[Event "Titled Tuesday Blitz March 14 Late 2023"]
[White "Pino Perez, Lazaro"]
[Black "Khatena, Moshe"]
[WhiteFideId "3517055"]
[BlackFideId "2010461"]
[WhiteElo "2170"]
[BlackElo "2199"]
[Result "0-1"]
[Round "04"]
[TimeControl "180+1"]
[Date "2023.03.14"]
[WhiteClock "0:00:05"]
[BlackClock "0:00:47"]

1. d4 {[%clk 0:03:00]}  b5 {[%clk 0:02:56]} 2. e4 {[%clk 0:02:59]}  Bb7 {[%clk 0:02:56]} 3. Bd3 {[%clk 0:02:59]}  Nf6 {[%clk 0:02:53]} 4. Qe2 {[%clk 0:02:58]}  a6 {[%clk 0:02:51]} 5. Nf3 {[%clk 0:02:56]}  e6 {[%clk 0:02:52]} 6. Nbd2 {[%clk 0:02:52]}  d5 {[%clk 0:02:50]} 7. e5 {[%clk 0:02:52]}  Nfd7 {[%clk 0:02:50]} 8. c3 {[%clk 0:02:47]}  c5 {[%clk 0:02:50]} 9. O-O {[%clk 0:02:44]}  Nc6 {[%clk 0:02:50]} 10. a3 {[%clk 0:02:43]}  Qb6 {[%clk 0:02:48]} 11. dxc5 {[%clk 0:02:35]}  Nxc5 {[%clk 0:02:48]} 12. Bc2 {[%clk 0:02:33]}  a5 {[%clk 0:02:42]} 13. b4 {[%clk 0:02:23]}  Nd7 {[%clk 0:02:28]} 14. Nb3 {[%clk 0:02:19]}  a4 {[%clk 0:02:21]} 15. Be3 {[%clk 0:02:06]}  Qc7 {[%clk 0:02:10]} 16. Nbd4 {[%clk 0:02:06]}  Ncxe5 {[%clk 0:02:06]} 17. Nxe5 {[%clk 0:01:34]}  Qxe5 {[%clk 0:02:06]} 18. Qxb5 {[%clk 0:01:32]}  Bd6 {[%clk 0:01:58]} 19. Nf3 {[%clk 0:00:59]}  Ba6 {[%clk 0:01:38]} 20. Qxa4 {[%clk 0:00:53]}  Qh5 {[%clk 0:01:17]} 21. Qc6 {[%clk 0:00:36]}  Ke7 {[%clk 0:01:16]} 22. Bg5+ {[%clk 0:00:19]}  f6 {[%clk 0:01:14]} 23. Rfe1 {[%clk 0:00:20]}  Rhc8 {[%clk 0:01:00]} 24. Qxd5 {[%clk 0:00:19]}  Ne5 {[%clk 0:00:54]} 25. Qe4 {[%clk 0:00:08]}  Nxf3+ {[%clk 0:00:48]} 26. Qxf3 {[%clk 0:00:05]}  Qxh2# {[%clk 0:00:47]} 0-1


[Site "https://www.chess.com"]

[Event "Titled Tuesday Blitz March 14 Late 2023"]
[White "Popov, Mikhail"]
[Black "Ozer, Omer Faruk"]
[WhiteFideId "4146182"]
[BlackFideId "6354564"]
[WhiteElo "2270"]
[BlackElo "2260"]
[Result "1-0"]
[Round "04"]
[TimeControl "180+1"]
[Date "2023.03.14"]
[WhiteClock "0:00:02"]
[BlackClock "0:00:07"]

1. c4 {[%clk 0:03:00]}  Nc6 {[%clk 0:02:56]} 2. g3 {[%clk 0:02:55]}  h5 {[%clk 0:02:54]} 3. h3 {[%clk 0:02:51]}  e5 {[%clk 0:02:45]} 4. Bg2 {[%clk 0:02:50]}  Bc5 {[%clk 0:02:45]} 5. Nc3 {[%clk 0:02:50]}  d6 {[%clk 0:02:44]} 6. e3 {[%clk 0:02:50]}  a6 {[%clk 0:02:45]} 7. Nge2 {[%clk 0:02:49]}  Ba7 {[%clk 0:02:45]} 8. d4 {[%clk 0:02:49]}  Nge7 {[%clk 0:02:43]} 9. d5 {[%clk 0:02:39]}  Nb8 {[%clk 0:02:43]} 10. Qc2 {[%clk 0:02:39]}  Nd7 {[%clk 0:02:39]} 11. Bd2 {[%clk 0:02:31]}  Rb8 {[%clk 0:02:33]} 12. a4 {[%clk 0:02:17]}  a5 {[%clk 0:02:28]} 13. Nb5 {[%clk 0:02:13]}  Bb6 {[%clk 0:02:28]} 14. b4 {[%clk 0:02:10]}  axb4 {[%clk 0:02:28]} 15. Bxb4 {[%clk 0:02:10]}  Bc5 {[%clk 0:02:24]} 16. Bd2 {[%clk 0:01:59]}  f5 {[%clk 0:02:14]} 17. h4 {[%clk 0:01:04]}  Nf6 {[%clk 0:02:13]} 18. Bh3 {[%clk 0:01:02]}  O-O {[%clk 0:02:08]} 19. Ng1 {[%clk 0:00:46]}  c6 {[%clk 0:02:04]} 20. Nc3 {[%clk 0:00:39]}  cxd5 {[%clk 0:01:56]} 21. cxd5 {[%clk 0:00:40]}  Nexd5 {[%clk 0:01:41]} 22. Nxd5 {[%clk 0:00:39]}  Nxd5 {[%clk 0:01:42]} 23. Nf3 {[%clk 0:00:39]}  Qe7 {[%clk 0:00:40]} 24. Ng5 {[%clk 0:00:36]}  Nc7 {[%clk 0:00:35]} 25. Bg2 {[%clk 0:00:21]}  Ne6 {[%clk 0:00:32]} 26. Bd5 {[%clk 0:00:20]}  Kh8 {[%clk 0:00:32]} 27. Bxe6 {[%clk 0:00:18]}  Bxe6 {[%clk 0:00:31]} 28. O-O {[%clk 0:00:18]}  Rbc8 {[%clk 0:00:27]} 29. Qd1 {[%clk 0:00:18]}  g6 {[%clk 0:00:27]} 30. Rb1 {[%clk 0:00:11]}  Bd5 {[%clk 0:00:25]} 31. e4 {[%clk 0:00:10]}  fxe4 {[%clk 0:00:23]} 32. Be3 {[%clk 0:00:10]}  Bc6 {[%clk 0:00:20]} 33. Bxc5 {[%clk 0:00:10]}  dxc5 {[%clk 0:00:21]} 34. Qc1 {[%clk 0:00:08]}  Rf5 {[%clk 0:00:19]} 35. Rb3 {[%clk 0:00:05]}  Rcf8 {[%clk 0:00:17]} 36. Nh3 {[%clk 0:00:05]}  Bxa4 {[%clk 0:00:16]} 37. Rc3 {[%clk 0:00:05]}  b6 {[%clk 0:00:16]} 38. Ra3 {[%clk 0:00:04]}  Bc6 {[%clk 0:00:15]} 39. Ra6 {[%clk 0:00:05]}  Qd7 {[%clk 0:00:15]} 40. Rxb6 {[%clk 0:00:04]}  e3 {[%clk 0:00:13]} 41. Qxe3 {[%clk 0:00:03]}  Kg7 {[%clk 0:00:13]} 42. Rfb1 {[%clk 0:00:02]}  Qd5 {[%clk 0:00:13]} 43. Rxc6 {[%clk 0:00:02]}  Qxc6 {[%clk 0:00:14]} 44. Rc1 {[%clk 0:00:02]}  e4 {[%clk 0:00:12]} 45. Qc3+ {[%clk 0:00:02]}  Kh6 {[%clk 0:00:11]} 46. Qe3+ {[%clk 0:00:03]}  Kh7 {[%clk 0:00:10]} 47. Qc3 {[%clk 0:00:03]}  Qd5 {[%clk 0:00:09]} 48. Qe3 {[%clk 0:00:03]}  c4 {[%clk 0:00:08]} 49. Ng5+ {[%clk 0:00:03]}  Kg8 {[%clk 0:00:08]} 50. Qa7 {[%clk 0:00:03]}  e3 {[%clk 0:00:07]} 51. Qh7# {[%clk 0:00:02]} 1-0


[Site "https://www.chess.com"]

[Event "Titled Tuesday Blitz March 14 Late 2023"]
[White "Preotu, Razvan"]
[Black "Deac, Bogdan-Daniel"]
[WhiteFideId "2613280"]
[BlackFideId "1226380"]
[WhiteElo "2407"]
[BlackElo "2649"]
[Result "0-1"]
[Round "04"]
[TimeControl "180+1"]
[Date "2023.03.14"]
[WhiteClock "0:00:01"]
[BlackClock "0:00:05"]

1. e4 {[%clk 0:03:00]}  c6 {[%clk 0:02:59]} 2. Nc3 {[%clk 0:03:00]}  d5 {[%clk 0:03:00]} 3. Nf3 {[%clk 0:03:01]}  a6 {[%clk 0:03:00]} 4. d4 {[%clk 0:03:00]}  Bg4 {[%clk 0:03:00]} 5. h3 {[%clk 0:03:01]}  Bh5 {[%clk 0:03:00]} 6. exd5 {[%clk 0:02:56]}  cxd5 {[%clk 0:03:00]} 7. g4 {[%clk 0:02:56]}  Bg6 {[%clk 0:03:00]} 8. h4 {[%clk 0:02:56]}  f6 {[%clk 0:02:23]} 9. h5 {[%clk 0:02:54]}  Bf7 {[%clk 0:02:22]} 10. g5 {[%clk 0:02:54]}  e6 {[%clk 0:02:14]} 11. Bf4 {[%clk 0:02:36]}  Bd6 {[%clk 0:02:08]} 12. Qd2 {[%clk 0:02:34]}  Nc6 {[%clk 0:01:50]} 13. O-O-O {[%clk 0:02:33]}  Bxf4 {[%clk 0:01:50]} 14. Qxf4 {[%clk 0:02:34]}  fxg5 {[%clk 0:01:50]} 15. Nxg5 {[%clk 0:02:29]}  Qf6 {[%clk 0:01:50]} 16. Qe3 {[%clk 0:01:55]}  Nge7 {[%clk 0:01:34]} 17. Bh3 {[%clk 0:01:52]}  Nf5 {[%clk 0:01:32]} 18. Bxf5 {[%clk 0:01:49]}  Qxf5 {[%clk 0:01:32]} 19. Nxf7 {[%clk 0:01:43]}  Qxf7 {[%clk 0:01:06]} 20. Nxd5 {[%clk 0:01:40]}  O-O {[%clk 0:01:04]} 21. Nb6 {[%clk 0:01:31]}  Rad8 {[%clk 0:00:37]} 22. h6 {[%clk 0:01:30]}  g6 {[%clk 0:00:31]} 23. c3 {[%clk 0:01:20]}  Qf5 {[%clk 0:00:17]} 24. Rde1 {[%clk 0:00:44]}  Rf6 {[%clk 0:00:14]} 25. Rhg1 {[%clk 0:00:44]}  Qb5 {[%clk 0:00:12]} 26. d5 {[%clk 0:00:30]}  exd5 {[%clk 0:00:11]} 27. Nd7 {[%clk 0:00:30]}  Rf5 {[%clk 0:00:07]} 28. Qe6+ {[%clk 0:00:29]}  Kh8 {[%clk 0:00:06]} 29. Qe8+ {[%clk 0:00:24]}  Rf8 {[%clk 0:00:06]} 30. Nxf8 {[%clk 0:00:24]}  Rxe8 {[%clk 0:00:06]} 31. Rxe8 {[%clk 0:00:24]}  Kg8 {[%clk 0:00:07]} 32. Nd7+ {[%clk 0:00:14]}  Kf7 {[%clk 0:00:07]} 33. Rge1 {[%clk 0:00:15]}  g5 {[%clk 0:00:06]} 34. Rf8+ {[%clk 0:00:13]}  Kg6 {[%clk 0:00:06]} 35. Rf6+ {[%clk 0:00:12]}  Kh5 {[%clk 0:00:07]} 36. Rh1+ {[%clk 0:00:05]}  Kg4 {[%clk 0:00:07]} 37. Rg1+ {[%clk 0:00:06]}  Kh4 {[%clk 0:00:07]} 38. Rf3 {[%clk 0:00:03]}  Qa4 {[%clk 0:00:05]} 39. Rfg3 {[%clk 0:00:03]}  g4 {[%clk 0:00:05]} 40. Kb1 {[%clk 0:00:01]}  Qe4+ {[%clk 0:00:05]} 41. Ka1 {[%clk 0:00:01]}  Qf5 {[%clk 0:00:05]} 0-1


[Site "https://www.chess.com"]

[Event "Titled Tuesday Blitz March 14 Late 2023"]
[White "Reprintsev, Alexander"]
[Black "Drygalov, Andrey"]
[WhiteFideId "14100541"]
[BlackFideId "24171735"]
[WhiteElo "2229"]
[BlackElo "2471"]
[Result "0-1"]
[Round "04"]
[TimeControl "180+1"]
[Date "2023.03.14"]
[WhiteClock "0:01:14"]
[BlackClock "0:01:50"]

1. e4 {[%clk 0:02:52]}  c5 {[%clk 0:02:59]} 2. b3 {[%clk 0:02:51]}  Nf6 {[%clk 0:02:57]} 3. e5 {[%clk 0:02:50]}  Nd5 {[%clk 0:02:57]} 4. Nc3 {[%clk 0:02:51]}  e6 {[%clk 0:02:51]} 5. Ne4 {[%clk 0:02:46]}  f5 {[%clk 0:02:47]} 6. exf6 {[%clk 0:02:41]}  Nxf6 {[%clk 0:02:47]} 7. Qe2 {[%clk 0:02:40]}  Be7 {[%clk 0:02:45]} 8. Bb2 {[%clk 0:02:39]}  O-O {[%clk 0:02:45]} 9. O-O-O {[%clk 0:02:39]}  Nc6 {[%clk 0:02:43]} 10. Nf3 {[%clk 0:02:38]}  d5 {[%clk 0:02:43]} 11. Ng3 {[%clk 0:02:19]}  a5 {[%clk 0:02:29]} 12. h3 {[%clk 0:01:59]}  a4 {[%clk 0:02:26]} 13. Ne5 {[%clk 0:01:59]}  axb3 {[%clk 0:02:25]} 14. axb3 {[%clk 0:01:59]}  Nd4 {[%clk 0:02:25]} 15. Qe3 {[%clk 0:01:51]}  Nd7 {[%clk 0:02:16]} 16. Bd3 {[%clk 0:01:26]}  Nxe5 {[%clk 0:02:13]} 17. Qxe5 {[%clk 0:01:26]}  Bf6 {[%clk 0:02:11]} 18. Qh5 {[%clk 0:01:25]}  g6 {[%clk 0:02:08]} 19. Qh6 {[%clk 0:01:25]}  Qa5 {[%clk 0:01:56]} 20. Nh5 {[%clk 0:01:22]}  Ne2+ {[%clk 0:01:50]} 21. Bxe2 {[%clk 0:01:14]}  Qa1+ {[%clk 0:01:50]} 0-1


[Site "https://www.chess.com"]

[Event "Titled Tuesday Blitz March 14 Late 2023"]
[White "Rostomyan, Mikayel"]
[Black "Miszler, Levente"]
[WhiteFideId "13313754"]
[BlackFideId "763276"]
[WhiteElo "2009"]
[BlackElo "2176"]
[Result "1-0"]
[Round "04"]
[TimeControl "180+1"]
[Date "2023.03.14"]
[WhiteClock "0:00:09"]
[BlackClock "0:00:04"]

1. d4 {[%clk 0:02:54]}  Nf6 {[%clk 0:02:58]} 2. Nf3 {[%clk 0:02:53]}  g6 {[%clk 0:02:58]} 3. b3 {[%clk 0:02:53]}  Bg7 {[%clk 0:02:58]} 4. Bb2 {[%clk 0:02:53]}  O-O {[%clk 0:02:58]} 5. e3 {[%clk 0:02:52]}  d5 {[%clk 0:02:58]} 6. Be2 {[%clk 0:02:49]}  b6 {[%clk 0:02:54]} 7. O-O {[%clk 0:02:43]}  Bb7 {[%clk 0:02:53]} 8. c4 {[%clk 0:02:44]}  Nbd7 {[%clk 0:02:50]} 9. Nc3 {[%clk 0:02:43]}  e6 {[%clk 0:02:46]} 10. Rc1 {[%clk 0:02:40]}  c5 {[%clk 0:02:46]} 11. cxd5 {[%clk 0:02:33]}  Nxd5 {[%clk 0:02:45]} 12. Nxd5 {[%clk 0:02:26]}  Bxd5 {[%clk 0:02:46]} 13. Qd2 {[%clk 0:02:25]}  Rc8 {[%clk 0:02:43]} 14. Ba6 {[%clk 0:02:21]}  Rc7 {[%clk 0:02:42]} 15. Rfd1 {[%clk 0:02:07]}  Qa8 {[%clk 0:02:35]} 16. Ne1 {[%clk 0:01:59]}  Nb8 {[%clk 0:02:23]} 17. Bc4 {[%clk 0:01:52]}  Rfc8 {[%clk 0:02:21]} 18. dxc5 {[%clk 0:01:41]}  Bxb2 {[%clk 0:01:46]} 19. Qxb2 {[%clk 0:01:36]}  Bxc4 {[%clk 0:01:39]} 20. cxb6 {[%clk 0:01:20]}  axb6 {[%clk 0:01:39]} 21. Rxc4 {[%clk 0:01:19]}  Rxc4 {[%clk 0:01:39]} 22. bxc4 {[%clk 0:01:20]}  Qc6 {[%clk 0:01:37]} 23. Rc1 {[%clk 0:01:17]}  Nd7 {[%clk 0:01:37]} 24. Nf3 {[%clk 0:01:14]}  Qe4 {[%clk 0:01:33]} 25. Qd4 {[%clk 0:01:11]}  Qxd4 {[%clk 0:01:31]} 26. exd4 {[%clk 0:01:12]}  Kf8 {[%clk 0:01:10]} 27. Kf1 {[%clk 0:01:11]}  Ke7 {[%clk 0:01:11]} 28. Ke2 {[%clk 0:01:11]}  Kd6 {[%clk 0:01:10]} 29. Kd3 {[%clk 0:01:11]}  Ra8 {[%clk 0:01:09]} 30. Rc2 {[%clk 0:01:04]}  Ra3+ {[%clk 0:01:09]} 31. Ke2 {[%clk 0:01:04]}  e5 {[%clk 0:01:08]} 32. d5 {[%clk 0:00:48]}  h6 {[%clk 0:00:46]} 33. Nd2 {[%clk 0:00:47]}  Nc5 {[%clk 0:00:44]} 34. Rb2 {[%clk 0:00:44]}  Na4 {[%clk 0:00:41]} 35. Ne4+ {[%clk 0:00:31]}  Kd7 {[%clk 0:00:40]} 36. Rc2 {[%clk 0:00:26]}  f5 {[%clk 0:00:40]} 37. Nf6+ {[%clk 0:00:18]}  Ke7 {[%clk 0:00:38]} 38. Ng8+ {[%clk 0:00:18]}  Kd6 {[%clk 0:00:38]} 39. Nxh6 {[%clk 0:00:17]}  Nc3+ {[%clk 0:00:30]} 40. Ke1 {[%clk 0:00:13]}  Nxa2 {[%clk 0:00:29]} 41. Nf7+ {[%clk 0:00:13]}  Kc5 {[%clk 0:00:29]} 42. Nxe5 {[%clk 0:00:10]}  Nb4 {[%clk 0:00:22]} 43. Rb2 {[%clk 0:00:10]}  Ra7 {[%clk 0:00:07]} 44. Kd2 {[%clk 0:00:09]}  Re7 {[%clk 0:00:06]} 45. Nd3+ {[%clk 0:00:08]}  Nxd3 {[%clk 0:00:05]} 46. Kxd3 {[%clk 0:00:09]}  Re1 {[%clk 0:00:03]} 47. Rb5+ {[%clk 0:00:10]}  Kd6 {[%clk 0:00:04]} 48. Rxb6+ {[%clk 0:00:10]}  Kd7 {[%clk 0:00:02]} 49. Rxg6 {[%clk 0:00:10]}  Rf1 {[%clk 0:00:02]} 50. Ke2 {[%clk 0:00:10]}  Rc1 {[%clk 0:00:03]} 51. Kd3 {[%clk 0:00:09]}  Rf1 {[%clk 0:00:03]} 52. Kd4 {[%clk 0:00:09]}  Rxf2 {[%clk 0:00:03]} 53. Kc5 {[%clk 0:00:09]}  Rxg2 {[%clk 0:00:04]} 54. Rxg2 {[%clk 0:00:09]} 1-0


[Site "https://www.chess.com"]

[Event "Titled Tuesday Blitz March 14 Late 2023"]
[White "Sailer, Mike"]
[Black "Grycel, Kamil"]
[WhiteFideId "2012901"]
[BlackFideId "1115499"]
[WhiteElo "2109"]
[BlackElo "2463"]
[Result "0-1"]
[Round "04"]
[TimeControl "180+1"]
[Date "2023.03.14"]
[WhiteClock "0:00:01"]
[BlackClock "0:00:27"]

1. d4 {[%clk 0:02:59]}  f5 {[%clk 0:02:57]} 2. Bg5 {[%clk 0:02:56]}  Nf6 {[%clk 0:02:56]} 3. Bxf6 {[%clk 0:02:48]}  exf6 {[%clk 0:02:56]} 4. e3 {[%clk 0:02:46]}  d5 {[%clk 0:02:56]} 5. Bd3 {[%clk 0:02:45]}  c6 {[%clk 0:02:55]} 6. Qf3 {[%clk 0:02:37]}  g6 {[%clk 0:02:55]} 7. h4 {[%clk 0:02:31]}  h5 {[%clk 0:02:44]} 8. Ne2 {[%clk 0:02:28]}  Bd6 {[%clk 0:02:43]} 9. Nf4 {[%clk 0:02:27]}  Bxf4 {[%clk 0:02:18]} 10. Qxf4 {[%clk 0:02:26]}  Be6 {[%clk 0:02:18]} 11. Nd2 {[%clk 0:02:23]}  Nd7 {[%clk 0:02:11]} 12. Rh3 {[%clk 0:02:21]}  Qb8 {[%clk 0:02:03]} 13. Rg3 {[%clk 0:02:14]}  Qxf4 {[%clk 0:01:53]} 14. exf4 {[%clk 0:02:06]}  Kf7 {[%clk 0:01:50]} 15. O-O-O {[%clk 0:01:50]}  Rhe8 {[%clk 0:01:48]} 16. Re1 {[%clk 0:01:50]}  Nb6 {[%clk 0:01:44]} 17. Rge3 {[%clk 0:01:44]}  Rad8 {[%clk 0:01:41]} 18. b3 {[%clk 0:01:32]}  Bc8 {[%clk 0:01:38]} 19. Rxe8 {[%clk 0:01:29]}  Rxe8 {[%clk 0:01:38]} 20. Rxe8 {[%clk 0:01:30]}  Kxe8 {[%clk 0:01:39]} 21. c4 {[%clk 0:01:28]}  dxc4 {[%clk 0:01:36]} 22. bxc4 {[%clk 0:01:26]}  Be6 {[%clk 0:01:34]} 23. Kc2 {[%clk 0:01:26]}  Ke7 {[%clk 0:01:32]} 24. Kc3 {[%clk 0:01:25]}  Nd7 {[%clk 0:01:18]} 25. Kb4 {[%clk 0:01:23]}  b6 {[%clk 0:01:18]} 26. a4 {[%clk 0:01:23]}  Kd6 {[%clk 0:01:17]} 27. Be2 {[%clk 0:01:00]}  c5+ {[%clk 0:01:17]} 28. dxc5+ {[%clk 0:00:50]}  Nxc5 {[%clk 0:01:18]} 29. a5 {[%clk 0:00:45]}  Bd7 {[%clk 0:01:02]} 30. axb6 {[%clk 0:00:43]}  axb6 {[%clk 0:01:02]} 31. Nf3 {[%clk 0:00:37]}  Ne4 {[%clk 0:00:59]} 32. Nd4 {[%clk 0:00:26]}  Nxf2 {[%clk 0:00:59]} 33. Nb5+ {[%clk 0:00:24]}  Bxb5 {[%clk 0:00:56]} 34. Kxb5 {[%clk 0:00:24]}  Kc7 {[%clk 0:00:56]} 35. c5 {[%clk 0:00:10]}  bxc5 {[%clk 0:00:57]} 36. Kxc5 {[%clk 0:00:10]}  Ne4+ {[%clk 0:00:55]} 37. Kd4 {[%clk 0:00:07]}  Kd6 {[%clk 0:00:55]} 38. Bc4 {[%clk 0:00:06]}  Ke7 {[%clk 0:00:49]} 39. Bd3 {[%clk 0:00:07]}  Nd6 {[%clk 0:00:48]} 40. Be2 {[%clk 0:00:07]}  Nf7 {[%clk 0:00:48]} 41. Bc4 {[%clk 0:00:07]}  Nd6 {[%clk 0:00:47]} 42. Bb3 {[%clk 0:00:07]}  Ne4 {[%clk 0:00:46]} 43. Bc4 {[%clk 0:00:07]}  Nf2 {[%clk 0:00:46]} 44. Ke3 {[%clk 0:00:06]}  Ng4+ {[%clk 0:00:46]} 45. Kd4 {[%clk 0:00:05]}  Nh2 {[%clk 0:00:42]} 46. Ke3 {[%clk 0:00:05]}  Ng4+ {[%clk 0:00:39]} 47. Kf3 {[%clk 0:00:05]}  Nh6 {[%clk 0:00:35]} 48. g3 {[%clk 0:00:04]}  Kd6 {[%clk 0:00:35]} 49. Ke3 {[%clk 0:00:03]}  Ng4+ {[%clk 0:00:34]} 50. Kf3 {[%clk 0:00:04]}  Ke7 {[%clk 0:00:34]} 51. Bd5 {[%clk 0:00:04]}  Nh2+ {[%clk 0:00:34]} 52. Kg2 {[%clk 0:00:04]}  Ng4 {[%clk 0:00:34]} 53. Kf3 {[%clk 0:00:05]}  Kf8 {[%clk 0:00:35]} 54. Be6 {[%clk 0:00:05]}  Kg7 {[%clk 0:00:35]} 55. Bb3 {[%clk 0:00:03]}  Nh2+ {[%clk 0:00:34]} 56. Kg2 {[%clk 0:00:03]}  Ng4 {[%clk 0:00:35]} 57. Kf3 {[%clk 0:00:03]}  Kh6 {[%clk 0:00:35]} 58. Ba2 {[%clk 0:00:03]}  Nh2+ {[%clk 0:00:35]} 59. Kg2 {[%clk 0:00:04]}  Ng4 {[%clk 0:00:36]} 60. Kf3 {[%clk 0:00:05]}  Kh7 {[%clk 0:00:35]} 61. Bb3 {[%clk 0:00:05]}  Nh6 {[%clk 0:00:35]} 62. Ba2 {[%clk 0:00:05]}  Kg7 {[%clk 0:00:35]} 63. Bb3 {[%clk 0:00:06]}  Ng4 {[%clk 0:00:30]} 64. Ba2 {[%clk 0:00:06]}  Kh6 {[%clk 0:00:28]} 65. Bb3 {[%clk 0:00:05]}  g5 {[%clk 0:00:28]} 66. Bc2 {[%clk 0:00:03]}  Kg6 {[%clk 0:00:28]} 67. Bb1 {[%clk 0:00:01]}  Nh2+ {[%clk 0:00:27]} 68. Kg2 {[%clk 0:00:01]}  Ng4 {[%clk 0:00:27]} 69. Kf3 {[%clk 0:00:01]}  Nh6 {[%clk 0:00:27]} 0-1


[Site "https://www.chess.com"]